bitfinex-derivatives/quotes_ETHF0:USTF0_20241004
["timestamp","ask_amount","ask_price","bid_price","bid_amount"]
[1728009708579,3.2078,2376.3,2376.1,1.65420005]
[1728009708773,3.2078,2376.3,2376.1,3.29]
[1728009708774,1.2261,2376.2,2376.1,3.29]
[1728009711973,1.2261,2376.2,2375.9,1.65420005]
[1728009712175,1.2261,2376.2,2376.0,3.29]
[1728009714873,1.2261,2376.2,2376.0,3.71089]
[1728009717584,1.2261,2376.2,2376.0,5.36509005]
[1728009717787,1.2261,2376.2,2376.1,0.42087]
[1728009718686,4.4339,2376.2,2376.1,0.42087]
[1728009721483,4.4339,2376.2,2376.1,1.94087]
[1728009722590,4.4339,2376.2,2376.1,1.52]
[1728009722791,4.4339,2376.2,2375.7,5.96742066]
[1728009722792,16.1627,2376.2,2375.9,1.65420005]
[1728009722991,1.52,2376.1,2375.6,3.17420005]
[1728009723285,3.2078,2375.9,2375.8,0.42093]
[1728009723882,1.2261,2376.2,2376.1,0.42087]
[1728009724081,0.8087,2376.2,2376.1,0.42087]
[1728009724284,0.3896,2376.2,2376.1,1.94087]
[1728009724683,0.3896,2376.2,2376.1,3.64481272]
[1728009724896,0.3896,2376.2,2376.1,1.94087]
[1728009725098,3.6158,2376.4,2376.3,0.42084]
[1728009725398,3.6158,2376.4,2376.3,1.94084]
[1728009725399,4.0226,2376.4,2376.3,1.94084]
[1728009725689,0.8148,2376.4,2376.3,1.94084]
[1728009725884,3.2078,2376.7,2376.6,0.42079]
[1728009726090,3.6023,2376.7,2376.6,1.52]
[1728009726292,7.8103,2376.7,2376.6,1.52]
[1728009726488,3.6023,2376.7,2376.6,1.94079]
[1728009726887,7.8103,2376.7,2376.6,1.94079]
[1728009727491,7.8103,2376.7,2376.6,0.42079]
[1728009727694,7.8103,2376.7,2376.4,3.28]
[1728009727888,3.6023,2376.7,2376.4,3.28]
[1728009728093,3.6023,2376.7,2376.5,0.4208]
[1728009728602,3.6023,2376.7,2376.4,3.70081]
[1728009728790,3.6023,2376.7,2376.4,0.42081]
[1728009729691,3.6023,2376.7,2376.5,0.4208]
[1728009730297,3.6023,2376.7,2376.6,0.42079]
[1728009730799,7.8103,2376.7,2376.3,1.65420005]
[1728009730997,3.6023,2376.7,2376.5,0.4208]
[1728009731499,3.6023,2376.7,2376.3,1.65420005]
[1728009731896,3.6023,2376.7,2376.5,0.4208]
[1728009732401,3.6023,2376.7,2376.6,0.42079]
[1728009732789,0.4068,2376.8,2376.7,0.42077]
[1728009732994,0.3909,2377.1,2377.0,0.42071]
[1728009733298,0.3909,2377.1,2377.0,3.70071]
[1728009734295,0.3909,2377.1,2376.4,5.83692939]
[1728009734296,0.3909,2377.1,2376.8,3.28]
[1728009734598,3.2078,2377.0,2376.7,3.70076]
[1728009734802,0.4107,2376.9,2376.7,3.28]
[1728009735102,0.4107,2376.9,2376.5,0.42079]
[1728009735299,0.4224,2376.8,2376.5,0.42079]
[1728009736403,0.4224,2376.8,2376.4,0.4208]
[1728009737996,3.2078,2376.7,2376.4,0.4208]
[1728009738201,0.4086,2376.6,2376.3,3.28]
[1728009738692,0.4241,2376.5,2376.3,3.28]
[1728009740705,3.2078,2376.4,2376.1,4.93420005]
[1728009740907,3.2078,2376.4,2376.1,5.35507005]
[1728009741209,3.2078,2376.4,2376.1,3.70087]
[1728009741810,3.2078,2376.4,2376.3,3.28]
[1728009742511,3.2078,2376.4,2376.1,3.28]
[1728009742703,3.2078,2376.4,2376.1,3.70087]
[1728009744105,0.4241,2376.5,2376.1,3.70087]
[1728009744507,3.2078,2376.4,2376.2,0.42086]
[1728009749013,3.2078,2376.4,2376.1,4.93420005]
[1728009749213,3.2078,2376.4,2376.1,1.65420005]
[1728009749408,7.8863,2376.3,2375.9,1.65420005]
[1728009749608,6.4878,2376.1,2375.7,1.65420005]
[1728009749802,6.4878,2376.1,2375.6,1.65420005]
[1728009749803,3.2078,2375.8,2375.6,1.65420005]
[1728009750009,3.2078,2375.8,2375.5,1.65420005]
[1728009750405,3.2078,2375.8,2375.4,2.06040005]
[1728009750719,3.2078,2375.8,2375.5,0.42097]
[1728009751913,3.2078,2375.8,2375.4,2.06040005]
[1728009752311,3.2078,2375.8,2375.5,0.42098]
[1728009753504,0.8048,2376.0,2375.5,0.42098]
[1728009753710,3.2078,2375.7,2375.5,0.42098]
[1728009755110,3.2078,2375.8,2375.5,0.42098]
[1728009757217,0.8048,2376.0,2375.5,0.42098]
[1728009757413,3.2078,2375.7,2375.5,0.42098]
[1728009757818,3.2078,2375.7,2375.4,0.82719]
[1728009758015,3.2078,2375.7,2375.4,0.4062]
[1728009758320,3.2078,2375.7,2375.5,0.42098]
[1728009759920,0.3874,2375.6,2375.5,0.42098]
[1728009764213,0.4254,2375.9,2375.6,0.42096]
[1728009764416,0.8336,2375.9,2375.5,3.28]
[1728009764614,0.8336,2375.9,2375.7,0.42094]
[1728009765721,0.8336,2375.9,2375.6,0.42095]
[1728009766109,0.8336,2375.9,2375.7,0.42094]
[1728009766720,0.8336,2375.9,2375.6,0.42095]
[1728009768719,0.8336,2375.9,2375.7,0.42094]
[1728009768918,0.8336,2375.9,2375.5,3.28]
[1728009769124,0.8336,2375.9,2375.6,0.42095]
[1728009773728,0.8336,2375.9,2375.6,1.94095]
[1728009774123,0.8336,2375.9,2375.7,0.42094]
[1728009774526,0.8336,2375.9,2375.6,1.52]
[1728009774527,0.8336,2375.9,2375.6,1.94095]
[1728009775818,0.8336,2375.9,2375.6,1.52]
[1728009776426,0.8336,2375.9,2375.6,1.94095]
[1728009777330,0.8336,2375.9,2375.8,1.52]
[1728009777922,0.8336,2375.9,2375.8,1.94093]
[1728009779719,3.6163,2376.0,2375.9,0.42091]
[1728009779920,3.6163,2376.0,2375.9,1.94091]
[1728009780732,3.6163,2376.0,2375.9,1.52]
[1728009782129,0.4085,2376.0,2375.9,1.52]
[1728009782432,0.4085,2376.0,2375.9,1.94091]
[1728009782628,0.4085,2376.0,2375.9,1.52]
[1728009785532,0.4085,2376.0,2375.9,1.94091]
[1728009785928,0.4085,2376.0,2375.9,1.52]
[1728009789828,0.4085,2376.0,2375.7,1.9079]
[1728009790024,0.388,2375.9,2375.7,1.9079]
[1728009791633,0.388,2375.9,2375.7,3.56210005]
[1728009791833,0.388,2375.9,2375.7,3.98304005]
[1728009792136,0.388,2375.9,2375.8,0.42093]
[1728009792538,0.388,2375.9,2375.8,1.70318427]
[1728009792728,0.388,2375.9,2375.8,1.70317165]
[1728009793437,0.4045,2376.2,2375.8,7.3193554]
[1728009793631,0.7913,2376.2,2376.1,1.52]
[1728009794334,0.7913,2376.2,2376.1,3.22349969]
[1728009794736,0.7913,2376.2,2376.0,3.17448624]
[1728009794943,0.7913,2376.2,2376.0,1.65448624]
[1728009795239,0.7913,2376.2,2375.8,2.20942939]
[1728009795240,0.7913,2376.2,2375.9,1.65448624]
[1728009796034,0.7913,2376.2,2376.0,1.10336184]
[1728009800246,0.7913,2376.2,2376.1,1.52]
[1728009801541,0.7913,2376.2,2376.1,2.62336184]
[1728009802548,0.7913,2376.2,2376.1,1.10336184]
[1728009802745,0.7913,2376.2,2376.0,1.65448624]
[1728009802746,0.7913,2376.2,2376.0,1.10336184]
[1728009807753,0.7913,2376.2,2376.0,0.21044]
[1728009811056,0.7913,2376.2,2375.9,2.62336184]
[1728009811354,0.7913,2376.2,2375.9,1.73045]
[1728009812548,0.7913,2376.2,2375.9,1.52]
[1728009813054,0.7913,2376.2,2375.8,1.10336184]
[1728009813055,4.7278,2376.0,2375.8,1.10336184]
[1728009813253,0.61956,2375.9,2375.5,1.10336184]
[1728009813554,3.2078,2375.7,2375.5,1.10336184]
[1728009813754,3.2078,2375.7,2375.5,0.21049]
[1728009814049,0.4095,2375.6,2375.4,1.31385184]
[1728009814254,0.4167,2375.5,2375.4,1.31385184]
[1728009814444,0.4167,2375.5,2375.4,1.10336184]
[1728009814649,10.6263,2375.5,2375.2,1.10336184]
[1728009814945,10.6263,2375.5,2374.7,1.10336184]
[1728009814946,0.21053,2375.0,2374.7,1.10336184]
[1728009815258,3.2078,2374.8,2374.5,1.52]
[1728009815447,4.7178,2374.8,2374.5,1.52]
[1728009815657,4.7178,2374.8,2374.6,1.10336184]
[1728009816164,4.7178,2374.8,2374.5,3.38506624]
[1728009816165,3.2078,2374.8,2374.7,1.52]
[1728009817648,3.2078,2374.8,2374.5,3.29]
[1728009820159,2.7392,2374.9,2374.5,3.29]
[1728009820451,2.7392,2374.9,2374.2,0.7976]
[1728009820452,3.2078,2374.7,2374.2,0.7976]
[1728009820658,3.2078,2374.7,2374.0,1.65448624]
[1728009820659,3.2078,2374.4,2374.0,1.10336184]
[1728009820857,1.2476,2374.3,2373.9,8.54136184]
[1728009821063,1.2476,2374.3,2374.0,3.50062]
[1728009821064,2.7576,2374.3,2374.0,3.50062]
[1728009822157,2.7576,2374.3,2373.9,4.148]
[1728009822360,2.7576,2374.3,2373.9,7.64863]
[1728009823557,1.2476,2374.3,2373.9,7.64863]
[1728009823859,2.7576,2374.3,2373.9,7.64863]
[1728009824857,2.7576,2374.3,2373.9,7.438]
[1728009825465,2.7576,2374.3,2373.9,3.29]
[1728009825762,2.7576,2374.3,2374.1,3.29]
[1728009826761,1.2476,2374.3,2374.1,3.29]
[1728009827061,2.7576,2374.3,2374.1,3.29]
[1728009831461,5.9654,2374.3,2374.1,3.29]
[1728009832161,2.7576,2374.3,2374.1,3.29]
[1728009832362,5.9654,2374.3,2374.1,3.29]
[1728009834961,5.9654,2374.3,2373.9,3.50062]
[1728009839165,5.9654,2374.3,2374.0,0.21062]
[1728009839563,5.9654,2374.3,2374.2,1.52]
[1728009842769,5.9654,2374.3,2373.9,0.21063]
[1728009842964,5.9654,2374.3,2374.1,1.52]
[1728009846170,5.9654,2374.3,2373.7,1.02054]
[1728009846463,5.9654,2374.3,2373.8,1.73063]
[1728009846970,5.9654,2374.3,2373.9,0.21063]
[1728009847158,4.4554,2374.3,2374.0,0.21062]
[1728009847359,4.4554,2374.3,2373.7,0.8099]
[1728009847360,4.0318,2374.3,2374.2,0.2106]
[1728009847563,4.0318,2374.3,2374.1,1.73061]
[1728009848362,4.0318,2374.3,2374.1,1.52]
[1728009848568,5.5348,2374.3,2374.0,1.73062]
[1728009849269,1.52,2374.1,2373.8,0.21064]
[1728009849472,3.6162,2374.0,2373.6,1.52]
[1728009849772,0.412,2373.9,2373.8,0.21064]
[1728009850271,0.412,2373.9,2373.7,1.73065]
[1728009850667,0.412,2373.9,2373.7,1.52]
[1728009850861,0.412,2373.9,2373.8,0.21064]
[1728009852475,3.6198,2373.9,2373.8,0.21064]
[1728009854970,3.6198,2373.9,2373.6,1.73065]
[1728009855665,3.6198,2373.9,2373.7,0.21064]
[1728009858376,3.6198,2373.9,2373.7,1.73064]
[1728009859970,3.6198,2373.9,2373.4,1.49596184]
[1728009860180,3.6198,2373.9,2373.6,1.73065]
[1728009862967,3.6198,2373.9,2373.6,1.52]
[1728009863179,3.6198,2373.9,2373.7,0.21064]
[1728009863376,3.6198,2373.9,2373.6,1.52]
[1728009863677,3.6198,2373.9,2373.7,0.21065]
[1728009864771,3.2078,2373.8,2373.7,0.21065]
[1728009866476,0.412,2373.9,2373.7,0.21065]
[1728009866670,3.2078,2373.8,2373.7,0.21065]
[1728009868671,0.412,2373.9,2373.7,0.21065]
[1728009868872,3.2078,2373.8,2373.7,0.21065]
[1728009870375,0.412,2373.9,2373.7,0.21065]
[1728009870776,3.2078,2373.8,2373.7,0.21065]
[1728009871481,3.2078,2373.8,2373.5,1.10336184]
[1728009871683,0.3949,2373.7,2373.6,0.21066]
[1728009872183,3.2078,2373.8,2373.7,0.21065]
[1728009878292,3.2078,2373.8,2373.6,3.61821184]
[1728009879479,3.2078,2373.8,2373.6,1.10336184]
[1728009881292,3.2078,2373.8,2373.6,1.31402184]
[1728009882296,3.2078,2373.8,2373.6,1.10336184]
[1728009883102,3.2078,2373.8,2373.6,1.31402184]
[1728009885488,3.2078,2373.8,2373.7,1.10336184]
[1728009885991,3.2078,2373.8,2373.6,1.10336184]
[1728009887599,3.2078,2373.8,2373.7,1.10336184]
[1728009887797,3.2078,2373.8,2373.6,1.10336184]
[1728009888894,4.7278,2373.8,2373.6,1.10336184]
[1728009889793,3.2078,2373.8,2373.6,1.10336184]
[1728009890001,3.2078,2373.8,2373.7,1.10336184]
[1728009890191,3.2078,2373.8,2373.6,2.83401184]
[1728009890397,0.8069,2373.9,2373.7,2.62336184]
[1728009890595,3.2078,2374.1,2373.9,0.21063]
[1728009890896,4.001,2374.1,2374.0,3.57281378]
[1728009891288,4.001,2374.1,2374.0,3.36219378]
[1728009891795,9.733,2374.1,2373.9,1.10440312]
[1728009892002,1.52,2374.0,2373.8,1.10440312]
[1728009892196,0.4173,2373.9,2373.8,1.10440312]
[1728009892903,0.4173,2373.9,2373.7,1.10440312]
[1728009893099,3.6363,2373.8,2373.7,1.10440312]
[1728009894597,3.6363,2373.8,2373.7,2.81257116]
[1728009896010,3.6363,2373.8,2373.7,3.36373553]
[1728009897506,3.6363,2373.8,2373.7,3.57585764]
[1728009898110,3.6363,2373.8,2373.7,1.86870429]
[1728009898301,3.6363,2373.8,2373.7,3.57595609]
[1728009901112,3.6363,2373.8,2373.7,3.57603751]
[1728009901308,3.6363,2373.8,2373.7,3.36538751]
[1728009901607,9.3691,2373.8,2373.6,1.10555564]
[1728009901807,1.9075,2373.7,2373.6,1.10555564]
[1728009902302,1.9075,2373.7,2373.6,2.8128951]
[1728009902505,1.9075,2373.7,2373.6,1.10555564]
[1728009906613,1.9075,2373.7,2373.5,1.10555564]
[1728009907407,1.9075,2373.7,2373.5,1.31621564]
[1728009908507,3.3945,2373.7,2373.5,1.31621564]
[1728009909408,3.3945,2373.7,2373.5,1.10555564]
[1728009909812,3.3945,2373.7,2373.4,1.31622564]
[1728009910106,3.2078,2373.5,2373.4,1.31622564]
[1728009910306,3.2078,2373.5,2373.4,3.5754754]
[1728009910701,3.2078,2373.5,2373.4,3.0225155]
[1728009910907,3.2078,2373.5,2373.4,3.5754754]
[1728009911108,3.2078,2373.5,2373.4,3.9637754]
[1728009911313,3.633,2373.5,2373.4,3.5754754]
[1728009913810,3.633,2373.5,2373.4,3.3648054]
[1728009914118,4.037,2373.5,2373.4,1.70675111]
[1728009914309,4.037,2373.5,2373.4,2.81166568]
[1728009914513,4.037,2373.5,2373.4,3.3648054]
[1728009915610,4.037,2373.5,2373.4,3.5754754]
[1728009916519,3.2078,2373.8,2373.4,15.0984054]
[1728009916725,0.8321,2374.0,2373.8,0.21063]
[1728009916924,0.4176,2374.1,2373.9,0.21063]
[1728009917108,0.8168,2374.1,2373.9,1.70363486]
[1728009917419,0.3992,2374.1,2374.0,1.73062]
[1728009917617,3.2078,2374.2,2374.0,4.88379554]
[1728009917921,3.2078,2374.2,2374.1,1.10436229]
[1728009917922,4.7278,2374.2,2374.1,1.10436229]
[1728009918112,4.7278,2374.2,2374.0,1.10436229]
[1728009920311,4.7278,2374.2,2373.9,1.31499229]
[1728009920711,4.7278,2374.2,2374.1,0.21061]
[1728009920712,3.2078,2374.2,2374.1,0.21061]
[1728009921016,3.2078,2374.2,2374.1,4.54001164]
[1728009921221,3.2078,2374.2,2374.1,9.13971099]
[1728009922222,3.2078,2374.2,2374.1,9.13938503]
[1728009922520,3.2078,2374.2,2374.1,9.1382689]
[1728009922818,4.7278,2374.2,2374.0,1.10323568]
[1728009923117,0.8474,2374.1,2373.8,1.10323568]
[1728009923322,1.52,2374.0,2373.7,1.10323568]
[1728009923815,3.2078,2373.9,2373.7,1.10323568]
[1728009924626,3.2078,2373.9,2373.6,1.31388568]
[1728009925825,3.2078,2373.9,2373.7,0.21064]
[1728009927522,3.2078,2374.0,2373.7,0.21064]
[1728009928519,3.2078,2374.0,2373.7,1.31387568]
[1728009930022,3.2078,2374.0,2373.8,0.21064]
[1728009933724,3.2078,2374.0,2373.7,1.10323568]
[1728009933921,3.2078,2374.0,2373.8,0.21064]
[1728009934135,3.2078,2374.0,2373.7,1.31387568]
[1728009935222,3.2078,2374.0,2373.7,1.10323568]
[1728009935428,3.2078,2374.0,2373.8,0.21064]
[1728009937234,3.2078,2374.0,2373.6,1.10323568]
[1728009937429,3.2078,2374.0,2373.7,0.21064]
[1728009937630,0.4101,2373.9,2373.7,0.21064]
[1728009938231,0.4101,2373.9,2373.5,1.65805429]
[1728009938232,0.4101,2373.9,2373.5,1.10323568]
[1728009938530,3.2078,2373.7,2373.4,1.31390568]
[1728009938733,0.8144,2373.6,2373.4,0.21067]
[1728009939228,0.3858,2373.5,2373.4,0.21067]
[1728009939827,0.3858,2373.5,2373.3,1.31391568]
[1728009940033,0.3858,2373.5,2373.4,0.21067]
[1728009940820,0.3858,2373.5,2373.3,0.21068]
[1728009941024,3.6758,2373.5,2373.2,1.31392568]
[1728009941533,3.2078,2373.4,2373.1,1.31392568]
[1728009942233,3.2078,2373.4,2373.2,0.21069]
[1728009942939,3.2078,2373.4,2373.1,1.31392568]
[1728009943327,3.2078,2373.4,2373.1,1.10323568]
[1728009943528,3.2078,2373.4,2373.2,3.01769307]
[1728009943738,3.2078,2373.4,2373.2,1.31392568]
[1728009948423,4.7278,2373.4,2373.2,1.31392568]
[1728009948624,4.7278,2373.4,2373.2,0.21069]
[1728009949238,1.52,2373.3,2373.1,1.10323568]
[1728009949534,2.3144,2373.2,2373.0,0.21071]
[1728009949737,3.2078,2373.1,2373.0,0.21071]
[1728009949933,3.6209,2373.1,2373.0,0.21071]
[1728009951229,3.6209,2373.1,2372.8,1.10323568]
[1728009951441,1.52,2372.9,2372.7,0.21073]
[1728009951638,0.7844,2372.8,2372.7,0.21073]
[1728009951940,0.7844,2372.8,2372.6,0.21074]
[1728009952137,0.3968,2372.7,2372.6,0.21074]
[1728009952327,1.9168,2372.7,2372.4,1.10323568]
[1728009952532,1.9168,2372.7,2372.5,0.21075]
[1728009952937,1.52,2372.6,2372.5,0.21075]
[1728009953240,1.52,2372.6,2372.4,1.10323568]
[1728009953543,1.52,2372.6,2372.1,1.10323568]
[1728009953544,8.943,2372.5,2372.1,1.10323568]
[1728009953733,4.7278,2372.2,2372.0,0.21079]
[1728009953926,0.3863,2372.1,2372.0,0.21079]
[1728009960340,0.3863,2372.1,2371.9,0.2108]
[1728009961242,3.6763,2372.1,2371.8,0.21081]
[1728009961440,3.6763,2372.1,2371.9,0.21081]
[1728009961639,3.6763,2372.1,2371.7,0.4278]
[1728009961842,0.3863,2372.1,2372.0,0.2108]
[1728009962248,0.3863,2372.1,2371.9,0.21081]
[1728009963442,0.3863,2372.1,2371.7,0.4278]
[1728009963643,0.3863,2372.1,2372.0,0.2108]
[1728009968150,0.3863,2372.1,2371.7,0.4278]
[1728009968352,0.3863,2372.1,2371.9,0.2108]
[1728009969348,0.3863,2372.1,2371.7,0.4278]
[1728009969549,3.29,2371.9,2371.5,0.11939544]
[1728009969749,3.29,2371.7,2371.4,0.21085]
[1728009970048,3.29,2371.7,2371.5,0.21084]
[1728009970049,0.8059,2371.6,2371.5,0.21084]
[1728009971144,0.8059,2371.6,2371.1,3.2078]
[1728009971439,3.2078,2371.5,2371.4,0.21085]
[1728009975841,6.4978,2371.5,2371.4,0.21085]
[1728009976344,6.4978,2371.5,2370.9,1.2176]
[1728009976551,0.4091,2371.4,2371.2,0.21087]
[1728009977143,0.4091,2371.4,2370.9,0.8129]
[1728009977144,7.5068,2371.3,2370.9,0.21089]
[1728009977347,6.61995,2371.4,2370.9,0.21089]
[1728009977348,3.29,2371.0,2370.9,0.21089]
[1728009977654,1.52,2371.0,2370.8,0.2109]
[1728009977847,0.8153,2370.9,2370.8,0.2109]
[1728009978652,0.098,2371.3,2370.8,10.2176]
[1728009978855,0.3917,2371.7,2371.6,0.21083]
[1728009979855,0.3917,2371.7,2371.5,0.21084]
[1728009981158,0.3917,2371.7,2371.3,0.8193]
[1728009981354,0.3917,2371.7,2371.4,0.21085]
[1728009982252,0.3917,2371.7,2371.3,0.63845]
[1728009982454,3.2078,2371.6,2371.3,0.63845]
[1728009982658,3.2078,2371.6,2371.3,0.21085]
[1728009983559,6.4978,2371.6,2371.2,0.21086]
[1728009983760,6.4978,2371.6,2371.1,0.8363]
[1728009984260,6.4978,2371.6,2371.2,0.21087]
[1728009985058,3.29,2371.4,2371.1,0.21087]
[1728009985253,0.8154,2371.3,2371.1,0.21087]
[1728009985459,1.2333,2371.3,2371.1,0.21087]
[1728009985660,1.2333,2371.3,2370.9,0.8053]
[1728009985661,1.2333,2371.3,2371.0,0.21088]
[1728009985963,3.29,2371.2,2371.0,0.21088]
[1728009986369,3.29,2371.2,2371.1,0.21088]
[1728009986864,1.2333,2371.3,2371.2,0.21087]
[1728009987062,1.2333,2371.3,2370.8,0.4134]
[1728009987261,1.2333,2371.3,2371.1,0.21087]
[1728009987657,1.2333,2371.3,2371.2,0.21087]
[1728009987857,1.2333,2371.3,2371.1,0.21087]
[1728009988462,1.2333,2371.3,2371.2,0.21087]
[1728009989568,1.2333,2371.3,2371.1,0.21087]
[1728009989769,1.2333,2371.3,2371.2,0.21087]
[1728009991158,1.2333,2371.3,2371.1,0.21087]
[1728009991362,1.2333,2371.3,2370.8,0.4134]
[1728009991559,1.2333,2371.3,2370.9,0.2109]
[1728009992570,1.2333,2371.3,2370.8,0.4134]
[1728009992772,1.2333,2371.3,2371.0,0.21088]
[1728009995176,1.2333,2371.3,2370.9,0.21089]
[1728009995772,1.2333,2371.3,2371.0,0.21088]
[1728009996278,1.2333,2371.3,2371.1,0.21088]
[1728009996971,1.2333,2371.3,2370.8,0.4134]
[1728009996972,1.2333,2371.3,2371.0,0.21089]
[1728009997275,1.2333,2371.3,2370.8,0.4134]
[1728009997778,1.2333,2371.3,2371.1,0.21088]
[1728009998675,3.2078,2371.2,2371.1,0.21088]
[1728009998978,3.2078,2371.5,2370.9,1.10323568]
[1728009999183,3.2078,2371.5,2371.2,0.21087]
[1728009999384,0.407,2371.4,2371.2,0.21087]
[1728009999774,0.407,2371.4,2371.1,0.8079]
[1728010000079,0.4208,2371.3,2371.1,0.21087]
[1728010000275,0.8094,2371.3,2371.1,0.21087]
[1728010000780,0.8094,2371.3,2371.2,0.21087]
[1728010000975,3.2078,2371.5,2371.4,0.21085]
[1728010001172,3.2078,2371.5,2371.4,4.42765]
[1728010001369,3.2078,2371.5,2371.3,0.21085]
[1728010001582,3.2078,2371.5,2371.3,0.3982]
[1728010001788,0.407,2371.4,2371.2,1.72089568]
[1728010001975,1.2118,2371.4,2371.2,0.61766]
[1728010002479,1.2118,2371.4,2371.2,0.4068]
[1728010002983,1.2118,2371.4,2371.2,0.61766]
[1728010003780,1.2118,2371.4,2371.2,0.4068]
[1728010004079,3.2078,2371.5,2371.4,0.21085]
[1728010005076,0.098,2371.8,2371.7,0.21082]
[1728010005377,1.3131,2372.1,2371.8,0.21082]
[1728010005578,1.2151,2372.1,2371.7,1.31405568]
[1728010005780,1.2151,2372.1,2371.7,0.21082]
[1728010006177,1.2151,2372.1,2371.7,1.31405568]
[1728010007178,1.2151,2372.1,2371.7,1.10323568]
[1728010007384,1.2151,2372.1,2371.6,1.31406568]
[1728010009187,6.4978,2371.9,2371.6,1.10323568]
[1728010009381,6.4978,2371.9,2371.4,1.31408568]
[1728010009579,0.4069,2371.8,2371.4,0.21085]
[1728010009886,0.3891,2371.7,2371.3,0.21086]
[1728010010190,0.8175,2371.7,2371.4,0.21085]
[1728010011978,0.8175,2371.7,2371.1,4.1214]
[1728010012284,0.8175,2371.7,2371.5,0.21084]
[1728010012887,0.8175,2371.7,2371.6,0.21083]
[1728010013978,0.4284,2371.7,2371.6,0.21083]
[1728010014179,0.4069,2371.8,2371.7,0.21082]
[1728010019489,0.4069,2371.8,2371.5,1.10323568]
[1728010019790,0.4215,2371.7,2371.4,1.10323568]
[1728010020087,0.4097,2371.6,2371.4,1.10323568]
[1728010020292,0.4097,2371.6,2371.3,1.10323568]
[1728010020589,0.4114,2371.5,2371.2,1.10323568]
[1728010020988,0.4114,2371.5,2371.1,1.10323568]
[1728010021183,3.2078,2371.3,2371.1,1.10323568]
[1728010021388,0.8312,2371.2,2371.1,1.10323568]
[1728010022289,0.8312,2371.2,2371.0,1.31412568]
[1728010022494,0.4114,2371.1,2371.0,1.31412568]
[1728010022890,0.4114,2371.1,2371.0,3.02094712]
[1728010023087,0.4114,2371.1,2371.0,1.31412568]
[1728010024092,0.4114,2371.1,2370.9,1.10323568]
[1728010024289,0.4114,2371.1,2370.9,1.31413568]
[1728010024597,0.4114,2371.1,2370.9,1.10323568]
[1728010024799,0.4114,2371.1,2370.8,1.31413568]
[1728010025196,0.4114,2371.1,2370.8,0.2109]
[1728010026089,0.4114,2371.1,2370.7,6.4978]
[1728010026286,0.4114,2371.1,2370.9,0.21089]
[1728010026491,0.4114,2371.1,2370.8,0.2109]
[1728010027604,3.6192,2371.1,2370.7,3.29]
[1728010027798,3.6192,2371.1,2370.9,0.2109]
[1728010028589,3.6192,2371.1,2370.7,3.29]
[1728010028898,3.6192,2371.1,2370.8,0.2109]
[1728010031000,3.6192,2371.1,2370.6,3.29]
[1728010031193,3.6192,2371.1,2370.5,3.6029]
[1728010031396,3.2078,2370.7,2370.4,0.21093]
[1728010031690,1.1975,2370.6,2370.3,0.21095]
[1728010032095,1.1975,2370.6,2370.2,3.50095]
[1728010032293,1.1975,2370.6,2370.2,3.29]
[1728010032505,1.1975,2370.6,2370.4,0.21094]
[1728010032895,1.1975,2370.6,2370.3,0.21094]
[1728010033097,1.1975,2370.6,2370.3,3.29]
[1728010033301,1.1975,2370.6,2370.5,0.21093]
[1728010033999,1.1975,2370.6,2370.3,3.29]
[1728010034194,1.1975,2370.6,2370.4,0.21094]
[1728010034605,1.1975,2370.6,2370.3,3.29]
[1728010034907,1.1975,2370.6,2370.3,3.50094]
[1728010035104,1.1975,2370.6,2370.3,3.29]
[1728010035405,1.467,2371.0,2370.5,3.29]
[1728010035709,0.8446,2371.0,2370.9,0.2109]
[1728010035897,3.2078,2371.1,2371.0,0.21089]
[1728010036598,3.2078,2371.1,2371.0,0.59849]
[1728010036998,0.4026,2371.4,2371.0,4.6052]
[1728010037207,3.2078,2371.5,2371.3,0.21086]
[1728010037805,3.2078,2371.5,2371.4,0.21085]
[1728010038006,3.2078,2371.5,2371.4,3.50085]
[1728010038610,3.2078,2371.5,2371.4,3.29]
[1728010040411,3.2078,2371.5,2371.4,3.50085]
[1728010040716,3.2078,2371.5,2371.4,7.71765]
[1728010041011,3.2078,2371.8,2371.4,7.5068]
[1728010041306,3.2078,2371.8,2371.5,0.62504]
[1728010041910,3.2078,2371.8,2371.4,3.29]
[1728010042112,3.2078,2371.8,2371.4,3.50084]
[1728010042307,3.2078,2371.8,2371.5,0.21084]
[1728010042909,3.2078,2371.8,2371.7,0.21082]
[1728010043116,0.8385,2371.9,2371.6,3.29]
[1728010043316,0.8385,2371.9,2371.8,0.21082]
[1728010045707,0.8385,2371.9,2371.7,0.21082]
[1728010046415,0.8385,2371.9,2371.5,0.4267]
[1728010046607,0.8385,2371.9,2371.6,0.21083]
[1728010046810,0.8385,2371.9,2371.5,0.4267]
[1728010047010,0.8385,2371.9,2371.7,0.21082]
[1728010047513,3.2078,2371.8,2371.3,0.21086]
[1728010047711,3.2078,2371.5,2371.1,0.21087]
[1728010048023,1.1679,2371.4,2371.1,0.21088]
[1728010048320,1.1679,2371.4,2371.0,0.7978]
[1728010048521,1.1679,2371.4,2371.2,0.21086]
[1728010048821,0.386,2371.4,2371.3,0.21086]
[1728010049307,3.2078,2371.5,2371.4,0.21085]
[1728010050209,3.2078,2371.5,2371.4,0.61005]
[1728010050517,3.2078,2371.5,2371.3,3.29]
[1728010050518,3.2078,2371.5,2371.3,3.50086]
[1728010050715,3.2078,2371.5,2371.3,0.21086]
[1728010051020,3.2078,2371.5,2371.1,0.4124]
[1728010051214,0.407,2371.4,2371.1,0.21087]